[Event "European Women-ch 2023"]
[Site "Petrovac"]
[Date "2023.03.19"]
[Round "2.18"]
[White "Froewis, Annika"]
[Black "Danielian, Elina"]
[Result "0-1"]
[ECO "C16"]
[WhiteElo "2123"]
[BlackElo "2431"]
[Annotator "TA"]
[PlyCount "106"]
[EventDate "2023.03.15"]
[EventType "swiss"]
[EventCountry "MNE"]
[SourceTitle "playchess.com"]
[Source "ChessBase"]
[SourceQuality "1"]
[TimeControl "40/5400+30:1800+30"]

{[%evp 13,106,-1,0,3,4,-20,69,0,66,64,83,75,87,61,105,86,145,104,91,76,83,81,76,60,142,120,214,206,226,231,213,48,122,40,153,137,138,0,5,0,30,49,39,0,0,0,0,0,0,0,0,0,0,0,0,0,0,0,0,0,0,0,0,0,0,0,0,0,0,0,0,0,0,0,0,-213,0,-162,-148,-387,-350,-502,-501,-1053,-991,-883,-683,-1631,-1598,-2368,-2178,-2625,-2677,-2179,-2058]} 1. e4 {[%emt 0:00:03]} e6 {[%emt 0:00:04]} 2. d4 {[%emt 0:00:05]} d5 {[%emt 0:00:04]} 3. Nc3 {[%emt 0:00:14]} Bb4 {[%emt 0:00:09]} 4. e5 {[%emt 0:00:24]} b6 {[%emt 0:00:19]} 5. Qg4 {[%emt 0:07:25]} Bf8 {[%emt 0:00:05]} 6. Bb5+ {[%emt 0:09:14]} c6 {[%emt 0:00:12]} 7. Ba4 {[%emt 0:00:44]} a5 {[%emt 0:07:11]} 8. a3 {[%emt 0:04:59] C16: French: 3 Nc3 Bb4 4 e5: Lines without ...c5.} Ba6 {[%emt 0:05:43]} 9. Nce2 {[%emt 0:06:31]} Qd7 {[%emt 0:06:32] [#]} ({Better is} 9... b5 $11 10. Bb3 a4) 10. h4 $146 {[%emt 0:08:02]} (10. c3 $1 $14) ({Predecessor:} 10. c3 Ne7 11. Ng3 Bd3 12. N1e2 b5 13. Bd1 c5 14. Nf4 Bf5 15. Qe2 cxd4 16. cxd4 {1-0 Cori Quispe,K (2480)-Garcia Sobrino,D (2211) Pontevedra op-A 6th 2018 (4)}) 10... Bc4 {[%emt 0:13:09]} (10... b5 $11 11. Bb3 Qb7) 11. c3 $1 $14 {[%emt 0:05:49]} Bd3 {[%emt 0:02:35]} 12. Qh3 {[%emt 0:01:36]} Bc4 {[%emt 0:05:34]} 13. h5 {[%emt 0:08:29]} h6 {[%emt 0:00:35]} 14. f4 {[%emt 0:01:17]} f5 {[%emt 0:03:11]} (14... Ne7 $142) 15. exf6 {[%emt 0:06:38]} gxf6 {[%emt 0:00:32]} 16. Nf3 {[%emt 0:03:20][%cal Of4f5,Bg1f3,Bf3h4,Bh4f5][%mdl 32]} Bd6 {[%emt 0:00:22]} 17. Nh4 {[%emt 0:04:45]} Ne7 {[%emt 0:05:22]} 18. Bc2 {[%emt 0:02:16]} (18. Ng6 {is interesting.} Rg8 19. f5 Nxf5 20. g4) 18... c5 {[%emt 0:05:45]} ({Black should try} 18... Rg8 $14) 19. f5 $1 $16 {[%emt 0:06:52]} exf5 {[%emt 0:01:44]} (19... e5 $16) 20. Nxf5 $18 {[%emt 0:05:31]} Nxf5 {[%emt 0:00:13]} 21. Bxf5 {[%emt 0:00:16]} ({And not} 21. Qxf5 Qxf5 22. Bxf5 Nc6 $11) 21... Qe7 {[%emt 0:00:16][%csl Gc4][%cal Re7e2]} 22. Qe3 {[%emt 0:04:18]} (22. O-O $1 $18) 22... Ra7 {[%emt 0:02:57]} (22... Nc6 $14) 23. Rh3 {[%emt 0:02:33]} (23. Kf2 $16) 23... Kd8 {[%emt 0:00:14]} (23... Nc6 $14) 24. Kf2 {[%emt 0:05:01]} Nc6 {[%emt 0:04:00] [#]} 25. Qxe7+ {[%emt 0:03:30]} (25. Nf4 $1 $16 {[%cal Rf4e6]}) 25... Rxe7 $11 {[%emt 0:00:11]} 26. Bd3 {[%emt 0:00:29]} Rhe8 {[%emt 0:10:23]} 27. Bxc4 {[%emt 0:00:39]} dxc4 {[%emt 0:00:02]} 28. Be3 {[%emt 0:00:34]} (28. Re3 {simplifies} cxd4 29. Rxe7 Kxe7 30. cxd4 Kd7 31. Bd2) 28... cxd4 {[%emt 0:01:16]} 29. cxd4 {[%emt 0:00:44]} f5 $1 {[%emt 0:01:19]} 30. Rf3 {[%emt 0:01:53]} f4 {[%emt 0:02:56]} 31. Nxf4 {[%emt 0:00:15]} Rxe3 {[%emt 0:01:04][%mdl 64] Remove Defender, Deflection} 32. Rxe3 {[%emt 0:00:06]} Bxf4 {[%emt 0:00:02]} 33. Rxe8+ {[%emt 0:00:14]} Kxe8 {[%emt 0:00:04]} 34. Kf3 {[%emt 0:00:25]} Bg5 {[%emt 0:00:15]} 35. Ke4 {[%emt 0:00:55]} Ne7 $1 {[%emt 0:01:56]} 36. a4 {[%emt 0:01:27]} Kd7 {[%emt 0:00:06]} 37. Rf1 {[%emt 0:00:39]} Ke6 {[%emt 0:02:03]} 38. Rf8 {[%emt 0:00:38]} Nd5 {[%emt 0:00:54]} 39. Re8+ {[%emt 0:00:25]} Kd6 {[%emt 0:01:45] ...Nf6+ is the strong threat.} 40. Rb8 {[%emt 0:00:00]} Nf6+ {[%emt 0:00:00]} 41. Kf5 {[%emt 0:02:11]} Kc7 {[%emt 0:07:58]} 42. Rf8 {[%emt 0:03:09]} Nxh5 {[%emt 0:00:15] Threatens to win with ...Nf4.} 43. Ke5 {[%emt 0:03:54] Repels Nf4} Nf4 {[%emt 0:29:44] ...Ng6+ would be deadly.} 44. Ke4 $2 {[%emt 0:20:42]} (44. Rf7+ $1 $11 Kc6 45. Rxf4 Bxf4+ 46. Kxf4) 44... Ne6 $2 {[%emt 0:09:39]} (44... Nxg2 $19 {White must now prevent ...Ne3.} 45. d5 Nf4) 45. Rf7+ $2 {[%emt 0:00:57]} (45. Rg8 $11) 45... Kd6 $19 {[%emt 0:00:12]} 46. Rb7 $2 {[%emt 0:01:27] [#]} (46. Rf2 $17 {was worth a try.}) 46... Bd8 $1 {[%emt 0:00:43] Strongly threatening ...Kc6.} 47. Ra7 {[%emt 0:01:23]} (47. Ke3 $142 Bc7 48. Ke4) 47... Bf6 {[%emt 0:00:31] Black is clearly winning.} 48. Kf5 {[%emt 0:00:55]} (48. Rb7 $142 Bxd4 49. Rb8) 48... Bxd4 {[%emt 0:00:06]} 49. Rh7 {[%emt 0:00:19]} Be3 {[%emt 0:01:21]} 50. g4 {[%emt 0:00:41]} Nc5 {[%emt 0:01:04] And now ...Bg5 would win.} 51. Rg7 {[%emt 0:00:33] Dodges Bg5} Nxa4 {[%emt 0:00:28]} 52. Ke4 {[%emt 0:00:06]} Bc1 {[%emt 0:00:20]} 53. Rg6+ {[%emt 0:00:25]} Kc5 {[%emt 0:00:15] Quite a comeback for Black.   Weighted Error Value: White=0.71/Black=0.27 (precise)} 0-1

[Event "European Women-ch 2023"]
[Site "Petrovac"]
[Date "2023.03.19"]
[Round "2.18"]
[White "Popovic, Mateja"]
[Black "Dwilewicz, Katarzyna"]
[Result "0-1"]
[ECO "E33"]
[WhiteElo "1832"]
[BlackElo "2114"]
[Annotator "TA"]
[PlyCount "108"]
[EventDate "2023.03.15"]
[EventType "swiss"]
[EventCountry "MNE"]
[SourceTitle "playchess.com"]
[Source "ChessBase"]
[SourceQuality "1"]
[TimeControl "40/5400+30:1800+30"]

{[%evp 9,108,27,41,9,4,19,18,14,10,11,23,0,17,22,3,2,33,11,49,5,18,-23,14,0,3,0,0,-10,12,0,0,-173,-148,-133,-160,-387,-409,-395,-186,-204,-81,-82,-42,-26,-62,-240,-241,-234,-231,-420,-416,-404,-466,-455,-391,-449,-409,-400,-389,-367,0,0,0,0,0,0,0,0,0,0,0,-9,0,0,0,0,0,-102,-39,-248,-239,-328,-337,-338,-335,-339,-337,-337,-346,-424,-262,-543,-529,-579,-554,-1031,-925,-1949,-1237,-4790,-2424]} 1. d4 {[%emt 0:00:05]} Nf6 {[%emt 0:00:07]} 2. c4 {[%emt 0:00:06]} e6 {[%emt 0:00:09]} 3. Nc3 {[%emt 0:00:08]} Bb4 {[%emt 0:00:14]} 4. Qc2 {[%emt 0:00:12]} Nc6 {[%emt 0:00:52]} 5. Nf3 {[%emt 0:01:08]} d6 {[%emt 0:00:22]} 6. e4 {[%emt 0:02:13] E33: Nimzo-Indian: Classical: 4...Nc6.} Bxc3+ {[%emt 0:06:06]} 7. bxc3 {[%emt 0:00:42]} e5 {[%emt 0:00:22]} 8. d5 {[%emt 0:05:31] The position is equal.} Ne7 {[%emt 0:00:58] [#]} 9. c5 $1 {[%emt 0:01:01]} O-O {[%emt 0:02:41]} 10. Be2 {[%emt 0:05:52]} Ng6 {[%emt 0:07:31]} (10... Nd7 $5 {[%cal Rd7c5]}) 11. cxd6 {[%emt 0:02:41]} cxd6 {[%emt 0:00:12]} 12. O-O {[%emt 0:03:47] [#]} Bg4 $146 {[%emt 0:04:27]} ({Predecessor:} 12... Nd7 13. Ba3 Qe7 14. Nd2 b6 15. Nc4 Nc5 16. Bxc5 bxc5 17. Qa4 Nf4 18. Bf3 f5 {0-1 Collado Barbas,L (2046)-Sanchez Garcia,A (2126) Madrid-ch sf-B 2009 (2)}) 13. h3 {[%emt 0:11:19]} Bd7 {[%emt 0:00:17]} 14. Kh2 {[%emt 0:19:47]} Rc8 {[%emt 0:04:59]} 15. Ba3 {[%emt 0:09:27]} Qc7 {[%emt 0:08:23]} 16. g3 {[%emt 0:07:37]} Ne8 {[%emt 0:01:11]} 17. c4 {[%emt 0:03:53]} f5 {[%emt 0:05:22]} 18. Nd2 {[%emt 0:06:53]} Qa5 {[%emt 0:10:13]} 19. Qb2 {[%emt 0:01:58]} f4 {[%emt 0:05:29][%cal Ob7b5]} 20. Nb3 $2 {[%emt 0:08:52]} (20. Qxb7 $2 fxg3+ 21. fxg3 Qxd2 $19) (20. Nf3 $1 $11) 20... Qd8 $19 {[%emt 0:09:42] Threatens to win with ...f3.} 21. Nd2 {[%emt 0:03:16]} Qg5 {[%emt 0:02:26] Hoping for ...Qh6.} 22. g4 $2 {[%emt 0:02:49] [#]} (22. Nf3 $17 Qh5 23. Ng1 (23. Nh4 $2 f3 $19)) 22... f3 $1 {[%emt 0:05:10][%mdl 512]} 23. Bxf3 {[%emt 0:00:05]} Nf4 {[%emt 0:04:07]} (23... Nh4 24. Bd1 $17) (23... h5 $142 24. Qxb7 (24. gxh5 $2 Rxf3 {[%mdl 64] Decoy} 25. Nxf3 Qf4+ 26. Kg1 Bxh3 $19) 24... Rc7) 24. Rg1 {[%emt 0:01:26]} (24. Qxb7 Nf6 25. Rh1 (25. Bxd6 $2 Qh4 $19) 25... Bxg4 $19) 24... Rf6 {[%emt 0:12:09]} (24... Nd3 25. Qc3 Rxf3 26. Nxf3 $14) (24... Qh4 $19 {[%csl Gf4][%cal Rh4h3] is more deadly.} 25. Rg3 h5 26. gxh5 (26. Qxb7 $2 Rf7 $17) 26... Nxh5) 25. Rg3 $17 {[%emt 0:00:07]} Rh6 {[%emt 0:01:23] Black is more active.} 26. Bg2 {[%emt 0:00:15]} Nf6 $36 {[%emt 0:03:33][%cal Be8f6,Bf6g4,Bg4e3][%mdl 2080] Black has some pressure.} 27. Nf3 $2 {[%emt 0:00:37]} (27. Bxd6 $2 Nxg4+ 28. Kh1 Nxf2+ 29. Kh2 Ng4+ 30. Kh1 Nxh3 $19) ({White should play} 27. f3 $15 Ne2 28. Nf1 Nxg3 29. Nxg3) 27... Nxg4+ $19 {[%emt 0:00:05]} 28. Kg1 {[%emt 0:00:16]} Qh5 {[%emt 0:00:48][%cal Oh6g6] And now ...Rg6! would win.} 29. Qxb7 $2 {[%emt 0:00:55]} (29. Re1 Nf6 30. h4 (30. Bxd6 $2 Nxg2 {[%mdl 64] Remove Defender} 31. Rxg2 Bxh3 $19) (30. Qxb7 $2 Rg6 $19)) 29... Ne2+ {[%emt 0:00:32] Excellent horsemanship.} 30. Kf1 {[%emt 0:00:44]} Nxg3+ {[%emt 0:00:12]} 31. fxg3 {[%emt 0:00:02]} Ne3+ {[%emt 0:03:36]} 32. Kf2 {[%emt 0:00:07]} Nxg2 {[%emt 0:00:08]} 33. Qxd7 {[%emt 0:00:15]} Rf8 {[%emt 0:00:07]} (33... Rxc4 $2 34. Qd8+ (34. Kxg2 $2 Rc2+ {[%mdl 64] Deflection} 35. Kg1 Qxf3 $19) 34... Kf7 35. Ng5+ $18 (35. Kxg2 $2 Qxh3+ 36. Kf2 Rc2+ 37. Ke3 Rc3+ 38. Kf2 Rf6 $19) (35. Bxd6 Rf6 $11) (35. Kxg2 $2 Qxh3+ 36. Kf2 Rc2+ 37. Ke3 Rc3+ 38. Kf2 Rf6 $19) (35. Bxd6 Rf6 $11)) 34. Qg4 {[%emt 0:00:28]} Qxg4 {[%emt 0:02:16]} (34... Qxh3 35. Qxh3 Rxh3 36. Kxg2 $18) (34... Qe8 $19 35. Kxg2 Qa4 36. Bxd6 Qc2+ 37. Kg1 (37. Kh1 $2 Rxd6 38. Rg1 Rg6 $19) 37... Rxd6) 35. hxg4 $11 {[%emt 0:00:05]} Rhf6 {[%emt 0:00:25]} 36. Kxg2 {[%emt 0:00:07]} Rxf3 {[%emt 0:00:01]} 37. Bxd6 {[%emt 0:00:09][%mdl 4096] Endgame KRR-KRB} Rf2+ {[%emt 0:00:49]} 38. Kg1 {[%emt 0:00:05]} R8f3 {[%emt 0:00:33]} 39. Bxe5 {[%emt 0:00:21]} Rc2 {[%emt 0:01:20]} 40. Re1 {[%emt 0:00:00]} Kf7 {[%emt 0:00:00]} 41. Rb1 {[%emt 0:08:54]} Kg6 {[%emt 0:07:49]} 42. c5 {[%emt 0:03:26]} Rxc5 {[%emt 0:01:59]} 43. Bf4 {[%emt 0:03:15]} (43. Kg2 $11 Rf8 44. Bf4) 43... Rd3 {[%emt 0:03:33]} ({Better is} 43... Rc2 $17 {[%cal Of3d3] White must now prevent ...Rd3!} 44. d6 Rd3) 44. d6 $2 {[%emt 0:03:01]} (44. Rb2 $1 $15) 44... Rc2 $19 {[%emt 0:00:46][%mdl 1024] Black has strong compensation.} 45. Re1 {[%emt 0:02:25] aiming for e5.} Kf6 {[%emt 0:00:34]} (45... Rxa2 46. e5 Rc2 47. e6 $18) 46. e5+ {[%emt 0:01:11]} Ke6 {[%emt 0:00:09]} 47. a4 {[%emt 0:02:18]} a5 {[%emt 0:07:50]} 48. g5 {[%emt 0:01:41]} Rd4 {[%emt 0:02:49][%cal Oc2a2] ...Ra2! is the strong threat.} 49. Kf1 {[%emt 0:05:13]} Rh2 {[%emt 0:05:43]} ({Worse is} 49... Rxa4 50. Rd1 Raa2 51. Be3 $19 (51. d7 $2 Rf2+ 52. Kg1 Rg2+ 53. Kf1 Raf2+ 54. Ke1 Rg1+ {[%mdl 64] Skewer} 55. Kxf2 Rxd1 $19)) 50. Kg1 $2 {[%emt 0:01:59]} (50. Be3 {was the only chance.} Rd5 51. Bf2) 50... Ra2 {[%emt 0:00:16] Black is clearly winning.} 51. Rc1 {[%emt 0:02:52]} Rdxa4 {[%emt 0:01:21]} 52. Rd1 {[%emt 0:01:08] Intending d7 and mate.} Ra1 {[%emt 0:01:59]} 53. Bc1 {[%emt 0:01:51]} Rc4 $1 {[%emt 0:01:19]} (53... Kxe5 $2 54. d7 Rxc1 55. d8=Q $18 (55. d8=R $2 {is the wrong capture.} Rxd1+ 56. Rxd1 Rd4 $19)) 54. d7 {[%emt 0:00:38]} Rcxc1 {[%emt 0:00:13] Weighted Error Value: White=0.75/Black=0.34} 0-1

[Event "European Women-ch 2023"]
[Site "Petrovac"]
[Date "2023.03.19"]
[Round "2.19"]
[White "Buksa, Nataliya"]
[Black "Aydin, Gulenay"]
[Result "1-0"]
[ECO "C41"]
[WhiteElo "2405"]
[BlackElo "2039"]
[Annotator "TA"]
[PlyCount "105"]
[EventDate "2023.03.15"]
[EventType "swiss"]
[EventCountry "MNE"]
[SourceTitle "playchess.com"]
[Source "ChessBase"]
[SourceQuality "1"]
[TimeControl "40/5400+30:1800+30"]

{[%evp 17,105,37,41,44,47,26,53,35,48,0,0,0,0,0,16,6,17,13,10,0,0,0,0,-13,0,-23,0,0,17,0,0,0,17,0,-5,-38,-18,-28,8,6,18,21,14,10,35,-141,-43,-49,-39,-25,0,0,-2,-94,-16,-20,-20,-22,-23,-127,0,4,0,-20,-22,-22,-31,-70,202,200,190,216,185,0,685,663,595,618,884,398,1241,1225,1174,1132,1015,984,2237,1969,1521,1481]} 1. e4 {[%emt 0:00:42]} d6 {[%emt 0:00:21]} 2. d4 {[%emt 0:01:08]} Nf6 {[%emt 0:00:12]} 3. Nc3 {[%emt 0:00:05]} e5 {[%emt 0:00:16]} 4. Nf3 {[%emt 0:01:20]} Nbd7 {[%emt 0:00:11]} 5. Bc4 {[%emt 0:00:06]} Be7 {[%emt 0:00:14]} 6. O-O {[%emt 0:00:10]} O-O {[%emt 0:00:17]} 7. Re1 {[%emt 0:00:47]} c6 {[%emt 0:00:21]} 8. a4 {[%emt 0:00:05]} h6 {[%emt 0:00:18] The modern move.} 9. h3 {[%emt 0:05:37]} Re8 {[%emt 0:00:30]} 10. a5 {[%emt 0:02:44] C41: Philidor Defence.} Rb8 {[%emt 0:03:05] [#]} 11. b3 $146 {[%emt 0:27:12]} ({Predecessor:} 11. Ba2 b5 12. axb6 axb6 13. d5 Bb7 14. dxc6 Bxc6 15. b4 Ra8 16. Qd3 b5 17. Nh4 d5 18. exd5 Nxd5 19. Nxd5 Bxh4 {1-0 Brkic,A (2593)-Bosiocic,M (2625) CRO-ch Vinkovci 2020 (1)}) 11... b5 {[%emt 0:16:51]} 12. axb6 {[%emt 0:01:25] White is slightly better.} axb6 {[%emt 0:00:13]} 13. Bb2 {[%emt 0:01:21]} (13. d5 $1 $14 b5 14. dxc6 bxc4 15. cxd7 Qxd7 16. bxc4) 13... b5 $11 {[%emt 0:11:08]} 14. Bd3 {[%emt 0:01:27]} Bf8 {[%emt 0:06:17]} 15. Ne2 {[%emt 0:15:44]} Qc7 {[%emt 0:08:06]} 16. Ng3 {[%emt 0:03:06]} Bb7 {[%emt 0:08:36]} 17. Qd2 {[%emt 0:07:12]} g6 {[%emt 0:02:43]} 18. h4 {[%emt 0:09:53][%cal Oh4h5]} h5 {[%emt 0:02:33]} 19. Ng5 {[%emt 0:03:20]} Bg7 {[%emt 0:05:32]} 20. c3 {[%emt 0:02:07]} Rbd8 {[%emt 0:02:14]} 21. Qc2 {[%emt 0:02:25]} Qb8 {[%emt 0:04:24]} 22. Rf1 {[%emt 0:01:35]} Nf8 {[%emt 0:08:00]} 23. dxe5 {[%emt 0:06:02]} dxe5 {[%emt 0:00:36]} 24. c4 {[%emt 0:00:02]} Bc8 {[%emt 0:06:06]} 25. cxb5 {[%emt 0:00:36]} (25. Ra5 $5 {[%cal Rc4b5]}) 25... cxb5 {[%emt 0:00:01]} 26. Qe2 {[%emt 0:00:01]} (26. Ra5 $5 {[%cal Rd3b5]}) 26... Bg4 {[%emt 0:06:06]} 27. Qe3 {[%emt 0:00:59]} Ne6 {[%emt 0:03:53]} 28. Ra5 $1 {[%emt 0:01:54]} Nd4 {[%emt 0:01:17]} 29. Bxd4 {[%emt 0:00:28]} exd4 {[%emt 0:00:15]} 30. Qd2 {[%emt 0:00:04]} Bd7 {[%emt 0:00:20]} 31. Qb4 $2 {[%emt 0:00:59]} (31. f4 $14 {stays ahead.}) 31... Qf4 {[%emt 0:00:49]} (31... Ng4 $1 $17 {[%cal Og4f2] White must now prevent ...Nxf2!} 32. Qd2 Ne5) 32. Nf3 $15 {[%emt 0:00:19]} Ng4 {[%emt 0:02:06]} 33. Ne2 {[%emt 0:01:08]} Qc7 {[%emt 0:02:01]} 34. Rc1 {[%emt 0:00:05]} Qb7 {[%emt 0:00:24]} 35. Rca1 {[%emt 0:01:30]} (35. Nexd4 Bxd4 36. Nxd4 (36. Qxd4 $2 Be6 $17) 36... Qb6 $17) (35. Qd6 $11 {keeps the balance.}) 35... Bf8 {[%emt 0:00:48]} (35... Bc6 $17 36. Ng3 Ne5 37. Nxe5 Bxe5) 36. Qd2 $1 $11 {[%emt 0:00:42]} (36. Qxd4 $2 Bc6 37. Qc3 Bg7 $19) 36... Bc6 {[%emt 0:00:26]} (36... Qb8 {keeps more tension.} 37. Ra7 Bc6 38. Qf4 Bb7) 37. Ra7 $1 {[%emt 0:01:43]} Qb8 {[%emt 0:00:11] next ...Bc5 is good for Black.} 38. Ng3 {[%emt 0:01:35]} (38. Qf4 $11 Qxf4 39. Nxf4) 38... Bd6 {[%emt 0:00:36]} ({Black should play} 38... Bh6 $17 39. Ng5 Ne5) 39. Nxh5 $1 {[%emt 0:01:41]} Bxe4 {[%emt 0:01:06] A strong pair of Bishops.} (39... Bh2+ 40. Kf1 Bc7 41. e5 Bxe5 42. Bxg6 (42. R1a6 $2 Rd6 $19) 42... fxg6 43. Qg5 $18) 40. Rxf7 {[%emt 0:00:00]} Kxf7 {[%emt 0:00:00]} (40... Bh2+ $6 41. Kh1 Kxf7 42. Ng5+ Kg8 43. Nxe4 $17) 41. Bxe4 $1 {[%emt 0:06:48]} Bh2+ {[%emt 0:24:55]} 42. Kf1 $1 {[%emt 0:00:18][%cal Oe4g6]} Ne3+ $2 {[%emt 0:03:41][%mdl 8192]} (42... gxh5 $15 43. Qg5 Rxe4 44. Qf5+ Nf6 45. Ng5+ Kg7 46. Nxe4 Nxe4 47. Qxe4 Qd6 48. Ra7+ Rd7 49. Rxd7+ Qxd7) 43. fxe3 $18 {[%emt 0:00:37]} gxh5 {[%emt 0:00:37] Black is weak on the light squares} 44. Qc2 $1 {[%emt 0:15:52]} Kg7 {[%emt 0:00:39]} 45. exd4 {[%emt 0:00:41]} (45. Qc6 $6 Bd6 $14) (45. Ra6 $18 {Strongly threatening Rg6+.} Bd6 46. Nxd4 Rf8+ 47. Nf5+ Rxf5+ 48. Bxf5) 45... Qf4 $2 {[%emt 0:01:43][%mdl 8192] [#]} (45... Rc8 $11 46. Bc6 Qd6) 46. Ra7+ $1 {[%emt 0:01:25]} ({Worse is} 46. Bh7 Kh8 47. Qf5 Qxf5 48. Bxf5 Rf8 $17) (46. Bg6 $2 Rc8 47. Qd3 Rc1+ 48. Rxc1 Qxc1+ 49. Kf2 Rf8 $19) 46... Kf8 {[%emt 0:01:21] [#]} 47. Qc5+ $1 {[%emt 0:00:52]} Rd6 {[%emt 0:00:23]} 48. Bd5 {[%emt 0:04:52]} (48. Bg6 $142 Red8 49. Rf7+ (49. Qxh5 Qc1+ 50. Ne1 Qf4+ 51. Nf3 Qc1+ 52. Ne1 Qf4+ 53. Nf3 $11) 49... Qxf7 50. Bxf7 Kxf7 51. Qxh5+ Ke6 52. Nxh2) 48... Bg3 $2 {[%emt 0:01:13]} (48... Qe3 49. Rf7+ (49. Nxh2 $2 Qe1#) 49... Kg8 50. Re7+ (50. Nxh2 $2 Qe1#) 50... Kf8 51. Rxe3 Rxe3 52. Ne5 Bxe5 53. dxe5) (48... Re7 49. Qc8+ Re8) 49. Rf7+ {[%emt 0:00:37] White is clearly winning.} (49. Qxb5 $2 Re1#) 49... Qxf7 {[%emt 0:00:26]} 50. Bxf7 {[%emt 0:00:04][%mdl 64] Discovered Attack} Kxf7 {[%emt 0:00:32]} 51. Qxh5+ {[%emt 0:00:25]} Rg6 {[%emt 0:00:27]} 52. Ng5+ {[%emt 0:02:06]} Kf8 {[%emt 0:00:37]} 53. Qf3+ {[%emt 0:00:05] A superb game by Buksa.   Weighted Error Value: White=0.30/Black=0.48} (53. Qxg6 $2 Re1#) 1-0